[Event "Titled Tuesday Blitz November 08 Late 2022"]
[White "Poliakova, Varvara"]
[Black "Amburgy, Ryan"]
[WhiteFideId "13518313"]
[BlackFideId "30924820"]
[WhiteElo "2501"]
[BlackElo "2743"]
[Result "1-0"]
[Round "03"]
[TimeControl "180+1"]
[Date "2022.11.09"]
[WhiteClock "0:02:12"]
[BlackClock "0:01:49"]

1. e4 {[%clk 0:02:55]}  c6 {[%clk 0:03:00]} 2. d4 {[%clk 0:02:55]}  d5 {[%clk 0:03:01]} 3. Nd2 {[%clk 0:02:55]}  dxe4 {[%clk 0:03:01]} 4. Nxe4 {[%clk 0:02:56]}  Bf5 {[%clk 0:03:01]} 5. Ng3 {[%clk 0:02:56]}  Bg6 {[%clk 0:03:02]} 6. h4 {[%clk 0:02:57]}  h6 {[%clk 0:03:02]} 7. Nh3 {[%clk 0:02:55]}  e6 {[%clk 0:02:57]} 8. Nf4 {[%clk 0:02:55]}  Bh7 {[%clk 0:02:57]} 9. c3 {[%clk 0:02:53]}  Bd6 {[%clk 0:02:57]} 10. Bd3 {[%clk 0:02:54]}  Bxd3 {[%clk 0:02:56]} 11. Qxd3 {[%clk 0:02:55]}  Nd7 {[%clk 0:02:56]} 12. Nfh5 {[%clk 0:02:54]}  g6 {[%clk 0:02:52]} 13. Nf4 {[%clk 0:02:46]}  Ngf6 {[%clk 0:02:26]} 14. Nxg6 {[%clk 0:02:38]}  fxg6 {[%clk 0:02:27]} 15. Qxg6+ {[%clk 0:02:39]}  Kf8 {[%clk 0:02:27]} 16. Bxh6+ {[%clk 0:02:39]}  Rxh6 {[%clk 0:02:15]} 17. Qxh6+ {[%clk 0:02:39]}  Kf7 {[%clk 0:02:14]} 18. Ne4 {[%clk 0:02:16]}  Be7 {[%clk 0:01:55]} 19. Ng5+ {[%clk 0:02:14]}  Ke8 {[%clk 0:01:49]} 20. Qg6+ {[%clk 0:02:12]} 1-0


[Site "https://www.chess.com"]

[Event "Titled Tuesday Blitz November 08 Late 2022"]
[White "Poltorak, Sebastian"]
[Black "Ali Abdullahi, Farah"]
[WhiteFideId "1199498"]
[BlackFideId "16100212"]
[WhiteElo "2196"]
[BlackElo "2258"]
[Result "1-0"]
[Round "03"]
[TimeControl "180+1"]
[Date "2022.11.09"]
[WhiteClock "0:01:27"]
[BlackClock "0:00:25"]

1. c3 {[%clk 0:03:00]}  e6 {[%clk 0:02:57]} 2. d4 {[%clk 0:03:00]}  d5 {[%clk 0:02:57]} 3. Bf4 {[%clk 0:03:00]}  c5 {[%clk 0:02:54]} 4. e3 {[%clk 0:03:00]}  cxd4 {[%clk 0:02:55]} 5. exd4 {[%clk 0:02:59]}  Bd6 {[%clk 0:02:56]} 6. Bxd6 {[%clk 0:02:54]}  Qxd6 {[%clk 0:02:55]} 7. Nf3 {[%clk 0:02:55]}  Nc6 {[%clk 0:02:55]} 8. Bd3 {[%clk 0:02:52]}  Nge7 {[%clk 0:02:54]} 9. O-O {[%clk 0:02:52]}  O-O {[%clk 0:02:48]} 10. Qe2 {[%clk 0:02:51]}  Ng6 {[%clk 0:02:46]} 11. Nbd2 {[%clk 0:02:49]}  Nf4 {[%clk 0:02:45]} 12. Qe3 {[%clk 0:02:49]}  Nxd3 {[%clk 0:02:45]} 13. Qxd3 {[%clk 0:02:50]}  e5 {[%clk 0:02:42]} 14. dxe5 {[%clk 0:02:50]}  Nxe5 {[%clk 0:02:43]} 15. Nxe5 {[%clk 0:02:50]}  Qxe5 {[%clk 0:02:44]} 16. Nf3 {[%clk 0:02:50]}  Qh5 {[%clk 0:02:43]} 17. Rad1 {[%clk 0:02:49]}  Be6 {[%clk 0:02:43]} 18. Nd4 {[%clk 0:02:46]}  a6 {[%clk 0:02:35]} 19. Rfe1 {[%clk 0:02:46]}  Rae8 {[%clk 0:02:33]} 20. Qg3 {[%clk 0:02:41]}  Bg4 {[%clk 0:02:26]} 21. f3 {[%clk 0:02:37]}  Bc8 {[%clk 0:02:21]} 22. Rxe8 {[%clk 0:02:34]}  Rxe8 {[%clk 0:02:21]} 23. Re1 {[%clk 0:02:35]}  f6 {[%clk 0:02:17]} 24. h3 {[%clk 0:02:28]}  Rxe1+ {[%clk 0:02:08]} 25. Qxe1 {[%clk 0:02:29]}  Qe5 {[%clk 0:02:05]} 26. Kf2 {[%clk 0:02:26]}  Qxe1+ {[%clk 0:02:04]} 27. Kxe1 {[%clk 0:02:27]}  Kf7 {[%clk 0:02:04]} 28. Kd2 {[%clk 0:02:27]}  g6 {[%clk 0:02:02]} 29. Ke3 {[%clk 0:02:26]}  f5 {[%clk 0:02:01]} 30. Ne2 {[%clk 0:02:20]}  Kf6 {[%clk 0:01:57]} 31. Kd4 {[%clk 0:02:20]}  Ke6 {[%clk 0:01:51]} 32. Nf4+ {[%clk 0:02:19]}  Kd6 {[%clk 0:01:51]} 33. Nxd5 {[%clk 0:02:20]}  Be6 {[%clk 0:01:51]} 34. c4 {[%clk 0:02:20]}  b5 {[%clk 0:01:51]} 35. b3 {[%clk 0:02:20]}  bxc4 {[%clk 0:01:52]} 36. bxc4 {[%clk 0:02:21]}  g5 {[%clk 0:01:38]} 37. a3 {[%clk 0:02:16]}  g4 {[%clk 0:01:33]} 38. hxg4 {[%clk 0:01:44]}  fxg4 {[%clk 0:01:34]} 39. fxg4 {[%clk 0:01:45]}  Bxg4 {[%clk 0:01:32]} 40. Nb4 {[%clk 0:01:42]}  Bc8 {[%clk 0:01:27]} 41. c5+ {[%clk 0:01:41]}  Kc7 {[%clk 0:01:23]} 42. Nd5+ {[%clk 0:01:40]}  Kd8 {[%clk 0:01:13]} 43. c6 {[%clk 0:01:37]}  Bf5 {[%clk 0:00:57]} 44. Kc5 {[%clk 0:01:36]}  Be4 {[%clk 0:00:54]} 45. Kd6 {[%clk 0:01:36]}  Bxd5 {[%clk 0:00:40]} 46. Kxd5 {[%clk 0:01:37]}  Kc7 {[%clk 0:00:38]} 47. g4 {[%clk 0:01:37]}  h6 {[%clk 0:00:37]} 48. a4 {[%clk 0:01:36]}  a5 {[%clk 0:00:33]} 49. Kc5 {[%clk 0:01:36]}  Kc8 {[%clk 0:00:28]} 50. Kb6 {[%clk 0:01:37]}  Kb8 {[%clk 0:00:27]} 51. c7+ {[%clk 0:01:24]}  Kc8 {[%clk 0:00:27]} 52. Kc6 {[%clk 0:01:25]}  h5 {[%clk 0:00:25]} 53. g5 {[%clk 0:01:25]}  h4 {[%clk 0:00:25]} 54. g6 {[%clk 0:01:26]}  h3 {[%clk 0:00:25]} 55. g7 {[%clk 0:01:27]} 1-0


[Site "https://www.chess.com"]

[Event "Titled Tuesday Blitz November 08 Late 2022"]
[White "Preotu, Razvan"]
[Black "Kollars, Dmitrij"]
[WhiteFideId "2613280"]
[BlackFideId "12909572"]
[WhiteElo "2407"]
[BlackElo "2584"]
[Result "1-0"]
[Round "03"]
[TimeControl "180+1"]
[Date "2022.11.08"]
[WhiteClock "0:00:02"]
[BlackClock "0:00:03"]

1. e4 {[%clk 0:03:00]}  c5 {[%clk 0:02:58]} 2. Nf3 {[%clk 0:03:01]}  d6 {[%clk 0:02:57]} 3. d4 {[%clk 0:03:01]}  cxd4 {[%clk 0:02:58]} 4. Nxd4 {[%clk 0:03:02]}  Nf6 {[%clk 0:02:59]} 5. Nc3 {[%clk 0:03:02]}  Nc6 {[%clk 0:02:59]} 6. Bg5 {[%clk 0:03:01]}  e6 {[%clk 0:02:59]} 7. Qd2 {[%clk 0:02:59]}  a6 {[%clk 0:02:58]} 8. O-O-O {[%clk 0:02:57]}  Bd7 {[%clk 0:02:54]} 9. f3 {[%clk 0:02:52]}  Nxd4 {[%clk 0:02:52]} 10. Qxd4 {[%clk 0:02:52]}  h6 {[%clk 0:02:53]} 11. Bh4 {[%clk 0:02:27]}  Be7 {[%clk 0:02:49]} 12. Bc4 {[%clk 0:02:05]}  b5 {[%clk 0:02:46]} 13. Bb3 {[%clk 0:02:05]}  Qc7 {[%clk 0:02:43]} 14. Bg3 {[%clk 0:02:02]}  a5 {[%clk 0:02:27]} 15. e5 {[%clk 0:01:14]}  dxe5 {[%clk 0:02:23]} 16. Bxe5 {[%clk 0:01:15]}  Qb7 {[%clk 0:02:23]} 17. a4 {[%clk 0:01:15]}  b4 {[%clk 0:02:03]} 18. Ne4 {[%clk 0:01:13]}  Nxe4 {[%clk 0:02:03]} 19. fxe4 {[%clk 0:01:11]}  f6 {[%clk 0:01:52]} 20. Bd6 {[%clk 0:00:59]}  Qc6 {[%clk 0:01:39]} 21. Bxe7 {[%clk 0:00:57]}  Kxe7 {[%clk 0:01:40]} 22. e5 {[%clk 0:00:34]}  f5 {[%clk 0:01:39]} 23. g4 {[%clk 0:00:32]}  Rhf8 {[%clk 0:01:19]} 24. gxf5 {[%clk 0:00:31]}  Rxf5 {[%clk 0:01:20]} 25. Rhg1 {[%clk 0:00:31]}  g5 {[%clk 0:01:19]} 26. h4 {[%clk 0:00:30]}  Rf4 {[%clk 0:01:04]} 27. Qd3 {[%clk 0:00:29]}  Raf8 {[%clk 0:00:52]} 28. hxg5 {[%clk 0:00:28]}  Rf3 {[%clk 0:00:47]} 29. Qd6+ {[%clk 0:00:14]}  Qxd6 {[%clk 0:00:47]} 30. exd6+ {[%clk 0:00:14]}  Kd8 {[%clk 0:00:47]} 31. gxh6 {[%clk 0:00:15]}  Rh8 {[%clk 0:00:46]} 32. Rg6 {[%clk 0:00:13]}  Be8 {[%clk 0:00:25]} 33. Rxe6 {[%clk 0:00:12]}  Bf7 {[%clk 0:00:26]} 34. Re2 {[%clk 0:00:04]}  Bxb3 {[%clk 0:00:19]} 35. cxb3 {[%clk 0:00:04]}  Rxh6 {[%clk 0:00:19]} 36. d7 {[%clk 0:00:05]}  Rh8 {[%clk 0:00:20]} 37. Kc2 {[%clk 0:00:05]}  Rf5 {[%clk 0:00:19]} 38. Rd4 {[%clk 0:00:04]}  Rc5+ {[%clk 0:00:18]} 39. Rc4 {[%clk 0:00:05]}  Rxc4+ {[%clk 0:00:13]} 40. bxc4 {[%clk 0:00:06]}  Kxd7 {[%clk 0:00:14]} 41. Re5 {[%clk 0:00:06]}  Rh2+ {[%clk 0:00:07]} 42. Kb3 {[%clk 0:00:07]}  Rh3+ {[%clk 0:00:07]} 43. Ka2 {[%clk 0:00:06]}  Rh4 {[%clk 0:00:08]} 44. Rxa5 {[%clk 0:00:04]}  Rxc4 {[%clk 0:00:07]} 45. Kb3 {[%clk 0:00:04]}  Rf4 {[%clk 0:00:06]} 46. Rb5 {[%clk 0:00:05]}  Kc6 {[%clk 0:00:07]} 47. Rxb4 {[%clk 0:00:06]}  Rf3+ {[%clk 0:00:07]} 48. Ka2 {[%clk 0:00:06]}  Kc5 {[%clk 0:00:07]} 49. Rb5+ {[%clk 0:00:07]}  Kc4 {[%clk 0:00:07]} 50. Rb8 {[%clk 0:00:05]}  Re3 {[%clk 0:00:04]} 51. a5 {[%clk 0:00:04]}  Re5 {[%clk 0:00:03]} 52. b3+ {[%clk 0:00:04]}  Kc3 {[%clk 0:00:03]} 53. b4 {[%clk 0:00:02]} 1-0


[Site "https://www.chess.com"]

[Event "Titled Tuesday Blitz November 08 Late 2022"]
[White "Richter, Paul"]
[Black "Torres Boch, Jose Francisco"]
[WhiteFideId "2046350"]
[BlackFideId "2278383"]
[WhiteElo "2564"]
[BlackElo "2073"]
[Result "1-0"]
[Round "03"]
[TimeControl "180+1"]
[Date "2022.11.09"]
[WhiteClock "0:00:43"]
[BlackClock "0:00:42"]

1. e4 {[%clk 0:03:00]}  c5 {[%clk 0:02:59]} 2. Nf3 {[%clk 0:03:00]}  d6 {[%clk 0:02:59]} 3. d4 {[%clk 0:03:00]}  cxd4 {[%clk 0:03:00]} 4. Nxd4 {[%clk 0:03:00]}  Nf6 {[%clk 0:03:01]} 5. Nc3 {[%clk 0:03:00]}  a6 {[%clk 0:03:01]} 6. Be2 {[%clk 0:03:00]}  e5 {[%clk 0:03:01]} 7. Nb3 {[%clk 0:03:00]}  Be7 {[%clk 0:03:02]} 8. g4 {[%clk 0:03:00]}  h6 {[%clk 0:03:00]} 9. Be3 {[%clk 0:02:59]}  Be6 {[%clk 0:02:59]} 10. Bf3 {[%clk 0:02:59]}  Nc6 {[%clk 0:02:59]} 11. Qe2 {[%clk 0:02:59]}  Rc8 {[%clk 0:02:49]} 12. O-O-O {[%clk 0:02:59]}  Nb4 {[%clk 0:02:49]} 13. Kb1 {[%clk 0:02:55]}  Nd7 {[%clk 0:02:33]} 14. a3 {[%clk 0:01:44]}  Nc6 {[%clk 0:02:31]} 15. Nd5 {[%clk 0:01:41]}  Bxd5 {[%clk 0:02:22]} 16. exd5 {[%clk 0:01:41]}  Na5 {[%clk 0:02:22]} 17. Nxa5 {[%clk 0:01:28]}  Qxa5 {[%clk 0:02:23]} 18. h4 {[%clk 0:01:27]}  b5 {[%clk 0:02:03]} 19. g5 {[%clk 0:01:22]}  hxg5 {[%clk 0:01:55]} 20. hxg5 {[%clk 0:01:23]}  Rxh1 {[%clk 0:01:53]} 21. Rxh1 {[%clk 0:01:23]}  Kd8 {[%clk 0:01:42]} 22. Bg4 {[%clk 0:01:17]}  Kc7 {[%clk 0:01:39]} 23. Rh7 {[%clk 0:01:08]}  Rg8 {[%clk 0:01:38]} 24. Bxd7 {[%clk 0:01:04]}  Kxd7 {[%clk 0:01:38]} 25. Qf3 {[%clk 0:00:52]}  f6 {[%clk 0:00:55]} 26. Qf5+ {[%clk 0:00:49]}  Ke8 {[%clk 0:00:42]} 27. Qe6 {[%clk 0:00:44]}  Kf8 {[%clk 0:00:42]} 28. g6 {[%clk 0:00:43]} 1-0


[Site "https://www.chess.com"]

[Event "Titled Tuesday Blitz November 08 Late 2022"]
[White "Rodriguez Santiago, Jaime"]
[Black "Diaz Rosas, Julio Cesar"]
[WhiteFideId "3100898"]
[BlackFideId "5105099"]
[WhiteElo "2025"]
[BlackElo "2246"]
[Result "0-1"]
[Round "03"]
[TimeControl "180+1"]
[Date "2022.11.09"]
[WhiteClock "0:00:59"]
[BlackClock "0:00:44"]

1. c4 {[%clk 0:03:00]}  e6 {[%clk 0:02:56]} 2. Nf3 {[%clk 0:02:58]}  d5 {[%clk 0:02:55]} 3. g3 {[%clk 0:02:58]}  Nf6 {[%clk 0:02:51]} 4. Bg2 {[%clk 0:02:58]}  Nbd7 {[%clk 0:02:50]} 5. O-O {[%clk 0:02:58]}  dxc4 {[%clk 0:02:50]} 6. a4 {[%clk 0:02:57]}  Rb8 {[%clk 0:02:43]} 7. Na3 {[%clk 0:02:57]}  b6 {[%clk 0:02:37]} 8. Nxc4 {[%clk 0:02:56]}  Bb7 {[%clk 0:02:37]} 9. b3 {[%clk 0:02:51]}  Be7 {[%clk 0:02:34]} 10. Bb2 {[%clk 0:02:50]}  O-O {[%clk 0:02:34]} 11. Rc1 {[%clk 0:02:44]}  c5 {[%clk 0:02:33]} 12. Qc2 {[%clk 0:02:22]}  h6 {[%clk 0:02:23]} 13. d3 {[%clk 0:02:22]}  Qc7 {[%clk 0:02:20]} 14. e4 {[%clk 0:02:17]}  Rfd8 {[%clk 0:02:20]} 15. Rfd1 {[%clk 0:02:16]}  Rbc8 {[%clk 0:02:09]} 16. Nfe5 {[%clk 0:02:14]}  Qb8 {[%clk 0:02:04]} 17. f4 {[%clk 0:02:09]}  Qa8 {[%clk 0:02:02]} 18. Nxd7 {[%clk 0:01:55]}  Rxd7 {[%clk 0:02:00]} 19. Ne5 {[%clk 0:01:53]}  Rdd8 {[%clk 0:01:58]} 20. Rf1 {[%clk 0:01:52]}  Qb8 {[%clk 0:01:46]} 21. g4 {[%clk 0:01:45]}  Ba6 {[%clk 0:01:33]} 22. g5 {[%clk 0:01:37]}  hxg5 {[%clk 0:01:33]} 23. fxg5 {[%clk 0:01:37]}  Bd6 {[%clk 0:01:33]} 24. Nf3 {[%clk 0:01:16]}  Bxd3 {[%clk 0:01:28]} 25. Qc3 {[%clk 0:01:09]}  Nh5 {[%clk 0:01:07]} 26. Rf2 {[%clk 0:01:02]}  Bxe4 {[%clk 0:00:53]} 27. Re1 {[%clk 0:01:00]}  Bg6 {[%clk 0:00:50]} 28. Nh4 {[%clk 0:00:59]}  Bxh2+ {[%clk 0:00:44]} 0-1


[Site "https://www.chess.com"]

[Event "Titled Tuesday Blitz November 08 Late 2022"]
[White "Rose, Felix"]
[Black "Golubev, Mikhail"]
[WhiteFideId "5105722"]
[BlackFideId "14100983"]
[WhiteElo "2039"]
[BlackElo "2374"]
[Result "0-1"]
[Round "03"]
[TimeControl "180+1"]
[Date "2022.11.09"]
[WhiteClock "0:00:19"]
[BlackClock "0:01:30"]

1. e4 {[%clk 0:03:00]}  c5 {[%clk 0:02:59]} 2. Nf3 {[%clk 0:03:00]}  d6 {[%clk 0:02:59]} 3. d4 {[%clk 0:03:00]}  Nf6 {[%clk 0:02:59]} 4. Nc3 {[%clk 0:03:00]}  cxd4 {[%clk 0:02:59]} 5. Nxd4 {[%clk 0:03:01]}  g6 {[%clk 0:02:59]} 6. Be3 {[%clk 0:03:01]}  Bg7 {[%clk 0:03:00]} 7. f3 {[%clk 0:03:02]}  O-O {[%clk 0:03:00]} 8. Qd2 {[%clk 0:03:02]}  Nc6 {[%clk 0:03:00]} 9. O-O-O {[%clk 0:03:03]}  d5 {[%clk 0:03:01]} 10. exd5 {[%clk 0:03:03]}  Nxd5 {[%clk 0:03:01]} 11. Nxc6 {[%clk 0:03:04]}  bxc6 {[%clk 0:03:01]} 12. Bd4 {[%clk 0:03:04]}  Bxd4 {[%clk 0:02:59]} 13. Qxd4 {[%clk 0:03:04]}  Qb6 {[%clk 0:02:58]} 14. Na4 {[%clk 0:02:57]}  Qa5 {[%clk 0:02:57]} 15. h4 {[%clk 0:02:13]}  e5 {[%clk 0:02:39]} 16. Qc4 {[%clk 0:01:53]}  Ne3 {[%clk 0:02:25]} 17. Qxc6 {[%clk 0:01:32]}  Nxd1 {[%clk 0:02:24]} 18. Qxa8 {[%clk 0:01:32]}  Qxa4 {[%clk 0:01:43]} 19. Kxd1 {[%clk 0:01:04]}  Rd8+ {[%clk 0:01:42]} 20. Bd3 {[%clk 0:00:39]}  Rxd3+ {[%clk 0:01:40]} 21. Kc1 {[%clk 0:00:39]}  Rd8 {[%clk 0:01:35]} 22. h5 {[%clk 0:00:19]}  Qxa2 {[%clk 0:01:30]} 0-1


[Site "https://www.chess.com"]

[Event "Titled Tuesday Blitz November 08 Late 2022"]
[White "Rosenberg, Evan S"]
[Black "Roque Sola, Gisela"]
[WhiteFideId "2019299"]
[BlackFideId "5120241"]
[WhiteElo "2394"]
[BlackElo "1961"]
[Result "1-0"]
[Round "03"]
[TimeControl "180+1"]
[Date "2022.11.09"]
[WhiteClock "0:00:30"]
[BlackClock "0:00:48"]

1. d4 {[%clk 0:02:59]}  Nf6 {[%clk 0:02:58]} 2. Nf3 {[%clk 0:03:00]}  g6 {[%clk 0:02:55]} 3. Nc3 {[%clk 0:03:00]}  d5 {[%clk 0:02:54]} 4. Bf4 {[%clk 0:03:00]}  c6 {[%clk 0:02:52]} 5. h3 {[%clk 0:02:57]}  Bg7 {[%clk 0:02:51]} 6. e3 {[%clk 0:02:55]}  O-O {[%clk 0:02:51]} 7. Be2 {[%clk 0:02:54]}  Nbd7 {[%clk 0:02:37]} 8. O-O {[%clk 0:02:51]}  Ne4 {[%clk 0:02:36]} 9. Nxe4 {[%clk 0:02:46]}  dxe4 {[%clk 0:02:37]} 10. Nd2 {[%clk 0:02:46]}  Nf6 {[%clk 0:02:36]} 11. a4 {[%clk 0:02:38]}  Qb6 {[%clk 0:02:32]} 12. Nc4 {[%clk 0:02:14]}  Qd8 {[%clk 0:02:28]} 13. a5 {[%clk 0:02:11]}  Be6 {[%clk 0:02:23]} 14. a6 {[%clk 0:02:01]}  b6 {[%clk 0:02:09]} 15. Ne5 {[%clk 0:01:42]}  Qc8 {[%clk 0:02:06]} 16. Kh2 {[%clk 0:01:39]}  Nd7 {[%clk 0:01:56]} 17. Nxd7 {[%clk 0:01:33]}  Qxd7 {[%clk 0:01:56]} 18. c4 {[%clk 0:01:21]}  h5 {[%clk 0:01:46]} 19. b4 {[%clk 0:01:20]}  Rfd8 {[%clk 0:01:44]} 20. Ra2 {[%clk 0:01:15]}  f6 {[%clk 0:01:43]} 21. Kg1 {[%clk 0:01:07]}  g5 {[%clk 0:01:38]} 22. Bg3 {[%clk 0:01:03]}  h4 {[%clk 0:01:38]} 23. Bh2 {[%clk 0:01:03]}  b5 {[%clk 0:01:35]} 24. Rc2 {[%clk 0:00:57]}  bxc4 {[%clk 0:01:34]} 25. Bxc4 {[%clk 0:00:58]}  Bxc4 {[%clk 0:01:34]} 26. Rxc4 {[%clk 0:00:58]}  Qd5 {[%clk 0:01:34]} 27. Qc2 {[%clk 0:00:57]}  Rac8 {[%clk 0:01:32]} 28. Rc1 {[%clk 0:00:57]}  Qb5 {[%clk 0:01:25]} 29. Rxc6 {[%clk 0:00:50]}  Rxc6 {[%clk 0:01:24]} 30. Qxc6 {[%clk 0:00:50]}  Qxb4 {[%clk 0:01:25]} 31. Qxe4 {[%clk 0:00:46]}  Qa3 {[%clk 0:01:17]} 32. Qe6+ {[%clk 0:00:41]}  Kh8 {[%clk 0:01:15]} 33. Rb1 {[%clk 0:00:38]}  Qd3 {[%clk 0:01:12]} 34. Rf1 {[%clk 0:00:38]}  Qb5 {[%clk 0:00:53]} 35. Qxe7 {[%clk 0:00:35]}  Rc8 {[%clk 0:00:50]} 36. Qxa7 {[%clk 0:00:33]}  Rc2 {[%clk 0:00:49]} 37. Qb8+ {[%clk 0:00:31]}  Kh7 {[%clk 0:00:48]} 38. Qxb5 {[%clk 0:00:30]} 1-0


[Site "https://www.chess.com"]

[Event "Titled Tuesday Blitz November 08 Late 2022"]
[White "Sanchez, Robert"]
[Black "Levine, David"]
[WhiteFideId "2034360"]
[BlackFideId "2011611"]
[WhiteElo "2352"]
[BlackElo "2164"]
[Result "0-1"]
[Round "03"]
[TimeControl "180+1"]
[Date "2022.11.09"]
[WhiteClock "0:00:36"]
[BlackClock "0:00:04"]

1. e4 {[%clk 0:03:00]}  e5 {[%clk 0:02:59]} 2. Nf3 {[%clk 0:03:01]}  Nc6 {[%clk 0:02:58]} 3. Bb5 {[%clk 0:03:01]}  a6 {[%clk 0:02:57]} 4. Ba4 {[%clk 0:03:02]}  Nf6 {[%clk 0:02:56]} 5. d3 {[%clk 0:03:00]}  d6 {[%clk 0:02:56]} 6. c4 {[%clk 0:02:59]}  Bd7 {[%clk 0:02:55]} 7. h3 {[%clk 0:03:00]}  g6 {[%clk 0:02:54]} 8. O-O {[%clk 0:03:00]}  Bg7 {[%clk 0:02:54]} 9. Nc3 {[%clk 0:03:01]}  O-O {[%clk 0:02:53]} 10. Bg5 {[%clk 0:03:01]}  h6 {[%clk 0:02:53]} 11. Be3 {[%clk 0:03:01]}  Nh5 {[%clk 0:02:44]} 12. Bxc6 {[%clk 0:02:58]}  Bxc6 {[%clk 0:02:44]} 13. d4 {[%clk 0:02:58]}  Qe8 {[%clk 0:02:29]} 14. d5 {[%clk 0:02:57]}  Bd7 {[%clk 0:02:29]} 15. c5 {[%clk 0:02:58]}  f5 {[%clk 0:02:27]} 16. Rc1 {[%clk 0:02:54]}  Nf4 {[%clk 0:02:21]} 17. Bxf4 {[%clk 0:02:54]}  exf4 {[%clk 0:02:21]} 18. exf5 {[%clk 0:02:50]}  Bxf5 {[%clk 0:02:19]} 19. Re1 {[%clk 0:02:49]}  Qf7 {[%clk 0:02:16]} 20. cxd6 {[%clk 0:02:31]}  cxd6 {[%clk 0:02:15]} 21. Nd4 {[%clk 0:02:31]}  Rae8 {[%clk 0:02:03]} 22. Qd2 {[%clk 0:02:27]}  Be5 {[%clk 0:01:56]} 23. Nxf5 {[%clk 0:02:20]}  Qxf5 {[%clk 0:01:56]} 24. f3 {[%clk 0:01:24]}  Bxc3 {[%clk 0:01:25]} 25. bxc3 {[%clk 0:01:25]}  Rc8 {[%clk 0:01:00]} 26. Re6 {[%clk 0:01:21]}  Rf6 {[%clk 0:00:54]} 27. Rce1 {[%clk 0:01:17]}  Rxe6 {[%clk 0:00:46]} 28. Rxe6 {[%clk 0:01:16]}  Rc5 {[%clk 0:00:32]} 29. Rxd6 {[%clk 0:01:12]}  Rb5 {[%clk 0:00:14]} 30. Qd4 {[%clk 0:01:04]}  Rb1+ {[%clk 0:00:12]} 31. Kh2 {[%clk 0:01:03]}  Qg5 {[%clk 0:00:06]} 32. g4 {[%clk 0:00:42]}  fxg3+ {[%clk 0:00:05]} 33. Kg2 {[%clk 0:00:41]}  Rb2+ {[%clk 0:00:05]} 34. Kh1 {[%clk 0:00:36]}  Qc1+ {[%clk 0:00:04]} 0-1


[Site "https://www.chess.com"]

[Event "Titled Tuesday Blitz November 08 Late 2022"]
[White "Schuster, Karsten"]
[Black "Vargas, Mauricio"]
[WhiteFideId "4611071"]
[BlackFideId "4404572"]
[WhiteElo "2294"]
[BlackElo "2025"]
[Result "1-0"]
[Round "03"]
[TimeControl "180+1"]
[Date "2022.11.09"]
[WhiteClock "0:02:15"]
[BlackClock "0:01:15"]

1. d4 {[%clk 0:03:00]}  Nf6 {[%clk 0:03:00]} 2. c4 {[%clk 0:03:00]}  d6 {[%clk 0:03:01]} 3. Nc3 {[%clk 0:02:59]}  g6 {[%clk 0:03:01]} 4. e4 {[%clk 0:03:00]}  Bg7 {[%clk 0:03:02]} 5. Be2 {[%clk 0:03:00]}  O-O {[%clk 0:03:03]} 6. Bg5 {[%clk 0:03:00]}  h6 {[%clk 0:03:03]} 7. Be3 {[%clk 0:03:00]}  e5 {[%clk 0:03:02]} 8. d5 {[%clk 0:03:00]}  a5 {[%clk 0:03:01]} 9. Qd2 {[%clk 0:03:00]}  Kh7 {[%clk 0:03:02]} 10. f3 {[%clk 0:03:00]}  Na6 {[%clk 0:03:02]} 11. Bd1 {[%clk 0:03:00]}  Nh5 {[%clk 0:03:03]} 12. Nge2 {[%clk 0:02:59]}  f5 {[%clk 0:03:03]} 13. exf5 {[%clk 0:02:58]}  gxf5 {[%clk 0:03:04]} 14. Bc2 {[%clk 0:02:57]}  Qe8 {[%clk 0:02:04]} 15. Ng3 {[%clk 0:02:52]}  Nf4 {[%clk 0:02:01]} 16. O-O-O {[%clk 0:02:49]}  Kg8 {[%clk 0:01:56]} 17. Rde1 {[%clk 0:02:46]}  Qf7 {[%clk 0:01:56]} 18. Rhg1 {[%clk 0:02:23]}  Bd7 {[%clk 0:01:44]} 19. Nge2 {[%clk 0:02:23]}  Nxe2+ {[%clk 0:01:44]} 20. Rxe2 {[%clk 0:02:23]}  Nc5 {[%clk 0:01:36]} 21. Bxh6 {[%clk 0:02:21]}  f4 {[%clk 0:01:32]} 22. Bxg7 {[%clk 0:02:20]}  Kxg7 {[%clk 0:01:29]} 23. g3 {[%clk 0:02:16]}  fxg3 {[%clk 0:01:15]} 24. Rxg3+ {[%clk 0:02:15]} 1-0


[Site "https://www.chess.com"]

[Event "Titled Tuesday Blitz November 08 Late 2022"]
[White "Shahaliyev, Ismayil"]
[Black "Pap, Gyula"]
[WhiteFideId "13406388"]
[BlackFideId "725323"]
[WhiteElo "2306"]
[BlackElo "2519"]
[Result "0-1"]
[Round "03"]
[TimeControl "180+1"]
[Date "2022.11.08"]
[WhiteClock "0:00:02"]
[BlackClock "0:00:53"]

1. d4 {[%clk 0:03:00]}  e6 {[%clk 0:03:00]} 2. c4 {[%clk 0:03:00]}  Bb4+ {[%clk 0:03:00]} 3. Nc3 {[%clk 0:02:59]}  c5 {[%clk 0:03:00]} 4. a3 {[%clk 0:02:54]}  Bxc3+ {[%clk 0:02:59]} 5. bxc3 {[%clk 0:02:55]}  Qa5 {[%clk 0:02:57]} 6. Bd2 {[%clk 0:02:54]}  Nf6 {[%clk 0:02:57]} 7. f3 {[%clk 0:02:51]}  d6 {[%clk 0:02:50]} 8. e4 {[%clk 0:02:44]}  e5 {[%clk 0:02:50]} 9. Bd3 {[%clk 0:02:41]}  Nbd7 {[%clk 0:02:45]} 10. f4 {[%clk 0:02:25]}  Nb6 {[%clk 0:02:33]} 11. Nf3 {[%clk 0:02:20]}  Bg4 {[%clk 0:02:28]} 12. h3 {[%clk 0:01:41]}  Bxf3 {[%clk 0:02:28]} 13. Qxf3 {[%clk 0:01:41]}  O-O {[%clk 0:02:28]} 14. fxe5 {[%clk 0:01:20]}  dxe5 {[%clk 0:02:28]} 15. d5 {[%clk 0:01:16]}  Ne8 {[%clk 0:02:29]} 16. Qg3 {[%clk 0:01:14]}  f6 {[%clk 0:02:19]} 17. O-O {[%clk 0:01:11]}  Nd6 {[%clk 0:02:19]} 18. Bh6 {[%clk 0:01:04]}  Ne8 {[%clk 0:02:00]} 19. Qg4 {[%clk 0:01:02]}  Qxc3 {[%clk 0:01:45]} 20. Be2 {[%clk 0:00:52]}  Rf7 {[%clk 0:01:40]} 21. d6 {[%clk 0:00:44]}  Qd4+ {[%clk 0:01:13]} 22. Kh2 {[%clk 0:00:39]}  Qxd6 {[%clk 0:01:14]} 23. Rad1 {[%clk 0:00:36]}  Qe7 {[%clk 0:01:13]} 24. Rd3 {[%clk 0:00:23]}  Kh8 {[%clk 0:01:04]} 25. Be3 {[%clk 0:00:19]}  Nc7 {[%clk 0:00:59]} 26. Rfd1 {[%clk 0:00:12]}  Ne6 {[%clk 0:01:00]} 27. Rd6 {[%clk 0:00:12]}  Nd4 {[%clk 0:00:58]} 28. Bxd4 {[%clk 0:00:13]}  exd4 {[%clk 0:00:58]} 29. Re6 {[%clk 0:00:12]}  Qc7+ {[%clk 0:00:58]} 30. e5 {[%clk 0:00:12]}  Nd7 {[%clk 0:00:53]} 31. Kh1 {[%clk 0:00:04]}  Nxe5 {[%clk 0:00:53]} 32. Bd3 {[%clk 0:00:02]}  Nxg4 {[%clk 0:00:53]} 0-1


[Site "https://www.chess.com"]